bitfinex/quotes_BTCUSD_20250614
["timestamp","ask_amount","ask_price","bid_price","bid_amount"]
[1749911643363,5.80939416,105100.0,105090.0,0.05049105]
[1749911643799,5.86648212,105100.0,105090.0,0.05049104]
[1749911644018,5.80939416,105100.0,105090.0,0.05049119]
[1749911644234,5.80939416,105100.0,105090.0,0.05049152]
[1749911644450,5.80939416,105100.0,105090.0,0.03264765]
[1749911644677,5.80939416,105100.0,105090.0,0.05049286]
[1749911644895,0.88085516,105100.0,105090.0,0.03264765]
[1749911645107,5.80939416,105100.0,105090.0,0.05049316]
[1749911645498,5.80939416,105100.0,105090.0,0.05049332]
[1749911645641,5.80939416,105100.0,105090.0,0.05049331]
[1749911645852,0.88085516,105100.0,105090.0,0.05049371]
[1749911646054,5.80939416,105100.0,105090.0,0.05049387]
[1749911646271,5.80939416,105100.0,105090.0,0.03264765]
[1749911646478,5.80939416,105100.0,105090.0,0.05049624]
[1749911646684,5.80939416,105100.0,105090.0,0.05049636]
[1749911646884,0.88085516,105100.0,105090.0,0.03264765]
[1749911647084,5.80939416,105100.0,105090.0,0.05049609]
[1749911647331,5.80939416,105100.0,105090.0,0.03264765]
[1749911647489,5.80939416,105100.0,105090.0,0.05049621]
[1749911647692,5.78657154,105100.0,105090.0,0.05049632]
[1749911647989,5.80944604,105100.0,105090.0,0.05049636]
[1749911648467,5.80944604,105100.0,105090.0,0.05049687]
[1749911648607,5.80944604,105100.0,105090.0,0.03264765]
[1749911649013,5.60963073,105100.0,105090.0,0.05049689]
[1749911649211,5.60963073,105100.0,105090.0,0.05049656]
[1749911649408,5.79992568,105100.0,105090.0,0.05049655]
[1749911649634,5.79992568,105100.0,105090.0,0.03264765]
[1749911649837,5.79992568,105100.0,105090.0,0.05049656]
[1749911650378,5.79992568,105100.0,105090.0,0.01554765]
[1749911650712,5.8960749,105100.0,105090.0,0.01789657]
[1749911650954,5.9134749,105100.0,105090.0,4.765e-05]
[1749911651184,5.9134749,105100.0,105090.0,0.01789747]
[1749911651393,5.9134749,105100.0,105090.0,4.765e-05]
[1749911651826,5.91347581,105100.0,105090.0,4.765e-05]
[1749911652284,5.93415727,105100.0,105090.0,4.765e-05]
[1749911652532,5.89607581,105100.0,105090.0,4.765e-05]
[1749911653170,5.79992659,105100.0,105090.0,4.765e-05]
[1749911653812,5.81732659,105100.0,105090.0,4.765e-05]
[1749911654218,5.79992659,105100.0,105090.0,4.765e-05]
[1749911654438,5.81732659,105100.0,105090.0,4.765e-05]
[1749911654651,5.83186744,105100.0,105090.0,4.765e-05]
[1749911655952,5.96609812,105100.0,105090.0,4.765e-05]
[1749911656386,5.92801666,105100.0,105090.0,4.765e-05]
[1749911657381,5.85920578,105100.0,105090.0,4.765e-05]
[1749911657597,0.98207017,105100.0,105090.0,4.765e-05]
[1749911657845,5.92790917,105100.0,105090.0,4.765e-05]
[1749911658291,5.94390917,105100.0,105090.0,4.765e-05]
[1749911658990,6.01055051,105100.0,105090.0,4.765e-05]
[1749911659421,5.99455051,105100.0,105090.0,4.765e-05]
[1749911661514,5.88110129,105100.0,105090.0,4.765e-05]
[1749911663069,5.88110129,105100.0,105090.0,0.03404765]
[1749911663710,5.68766129,105100.0,105090.0,0.03404765]
[1749911663907,5.88138129,105100.0,105090.0,0.03404765]
[1749911664991,5.88138129,105100.0,105090.0,0.01704765]
[1749911670967,5.88138129,105100.0,105090.0,0.03314765]
[1749911672135,0.95284229,105100.0,105090.0,0.03314765]
[1749911672377,5.88138129,105100.0,105090.0,0.03314765]
[1749911675767,5.97753051,105100.0,105090.0,0.03314765]
[1749911675976,5.97753051,105100.0,105090.0,4.765e-05]
[1749911676182,6.00993051,105100.0,105090.0,4.765e-05]
[1749911676396,5.97185392,105100.0,105090.0,4.765e-05]
[1749911676857,5.97177392,105100.0,105090.0,4.765e-05]
[1749911680541,1.04323492,105100.0,105090.0,4.765e-05]
[1749911680746,5.97177392,105100.0,105090.0,4.765e-05]
[1749911682303,5.97277392,105100.0,105090.0,4.765e-05]
[1749911683134,5.95667392,105100.0,105090.0,4.765e-05]
[1749911683537,5.94037392,105100.0,105090.0,4.765e-05]
[1749911684185,5.94037392,105100.0,105080.0,0.0331]
[1749911684396,0.22841777,105070.0,105060.0,0.29445723]
[1749911684605,0.33606116,105070.0,105060.0,0.29454812]
[1749911684806,0.35890711,105070.0,105060.0,0.29454812]
[1749911685010,0.68938965,105070.0,105060.0,0.32764812]
[1749911685218,0.68938965,105070.0,105060.0,0.3276483]
[1749911685439,0.68938965,105070.0,105060.0,0.3371663]
[1749911685440,0.69890702,105070.0,105060.0,0.3371663]
[1749911685696,0.69890702,105070.0,105060.0,0.34668421]
[1749911686547,0.69890702,105070.0,105060.0,0.35068421]
[1749911686744,0.50855773,105070.0,105060.0,0.34668376]
[1749911686977,0.51807519,105070.0,105060.0,0.34968376]
[1749911687351,0.70842448,105070.0,105060.0,0.34668376]
[1749911687550,0.75966479,105070.0,105060.0,0.34668376]
[1749911687755,0.75966479,105070.0,105060.0,0.34768376]
[1749911687976,0.75014806,105070.0,105060.0,0.34768376]
[1749911688250,0.75014806,105070.0,105060.0,0.34968376]
[1749911688433,0.75014806,105070.0,105060.0,0.27406582]
[1749911688651,0.75014806,105070.0,105060.0,0.264548]
[1749911688852,0.74063105,105070.0,105060.0,0.264548]
[1749911689955,0.68939074,105070.0,105060.0,0.25503009]
[1749911691333,0.68939074,105070.0,105060.0,0.27406582]
[1749911691551,0.68939074,105070.0,105060.0,0.264548]
[1749911691799,0.67987346,105070.0,105060.0,0.25502991]
[1749911693169,5.60841246,105070.0,105060.0,0.03619089]
[1749911693415,5.60841246,105070.0,105060.0,0.23607647]
[1749911693658,5.60841246,105070.0,105060.0,0.24559456]
[1749911694118,5.69504431,105070.0,105060.0,0.03619089]
[1749911694299,5.69504431,105070.0,105060.0,0.04570926]
[1749911694557,5.69504431,105070.0,105060.0,0.03619089]
[1749911695282,5.84908431,105070.0,105060.0,0.04511584]
[1749911695548,5.89764586,105070.0,105060.0,0.04512096]
[1749911695802,5.93572793,105070.0,105060.0,0.04512124]
[1749911696045,5.93572793,105070.0,105060.0,0.03619089]
[1749911696536,5.89764586,105070.0,105060.0,0.03319089]
[1749911697069,5.89796586,105070.0,105060.0,0.03319089]
[1749911698353,0.96942686,105070.0,105060.0,0.01679089]
[1749911698559,6.00874847,105070.0,105060.0,0.01679089]
[1749911699186,5.91259925,105070.0,105060.0,0.01679089]
[1749911699395,5.91259925,105070.0,105060.0,0.03379089]
[1749911701796,5.58789664,105070.0,105060.0,0.22415829]
[1749911702026,5.75341509,105070.0,105060.0,0.23367656]
[1749911702251,5.74389763,105070.0,105060.0,0.03379089]
[1749911704904,5.77245918,105070.0,105060.0,0.03379089]
[1749911706214,5.74389763,105070.0,105060.0,0.03379089]
[1749911710362,5.77245918,105070.0,105060.0,0.03379089]
[1749911722255,5.57972441,105070.0,105060.0,0.03379089]
[1749911722962,5.60828596,105070.0,105060.0,0.03379089]
[1749911725269,5.57972441,105070.0,105060.0,0.03379089]
[1749911725500,5.60826195,105070.0,105060.0,0.03379089]
[1749911730765,5.60798195,105070.0,105060.0,0.03379089]
[1749911732382,5.646032,105070.0,105060.0,0.03379089]
[1749911734224,5.66886667,105070.0,105060.0,0.03379089]
[1749911740199,5.76501589,105070.0,105060.0,9.089e-05]
[1749911745317,5.76501589,105070.0,105060.0,0.01795151]
[1749911746180,5.66886667,105070.0,105060.0,0.0514515]
[1749911746383,5.66886667,105070.0,105060.0,0.0336515]
[1749911746611,5.66886667,105070.0,105060.0,0.0514515]
[1749911746828,5.66886667,105070.0,105060.0,0.03359089]
[1749911747056,5.66886667,105070.0,105060.0,0.05145149]
[1749911747265,5.66886667,105070.0,105060.0,0.0514515]
[1749911747922,5.66886667,105070.0,105060.0,0.03359089]
[1749911748563,5.66886667,105070.0,105060.0,0.05145151]
[1749911748985,5.66886667,105070.0,105060.0,0.03359089]
[1749911749198,5.66886667,105070.0,105060.0,0.05145151]
[1749911750277,5.66886667,105070.0,105060.0,9.089e-05]
[1749911750843,5.66886667,105070.0,105060.0,0.0179429]
[1749911751054,5.66886667,105070.0,105060.0,9.089e-05]
[1749911751269,5.66886667,105070.0,105060.0,0.01794289]
[1749911751480,5.66886667,105070.0,105060.0,0.0179429]
[1749911751685,5.76501589,105070.0,105060.0,0.0179429]
[1749911752381,5.76501589,105070.0,105060.0,9.089e-05]
[1749911752610,5.76501589,105070.0,105060.0,0.0179429]
[1749911752834,5.96501589,105070.0,105060.0,9.089e-05]
[1749911753291,5.96501589,105070.0,105060.0,0.01794292]
[1749911753972,5.96501589,105070.0,105060.0,9.089e-05]
[1749911754180,5.96501589,105070.0,105060.0,0.01794292]
[1749911754392,5.96501589,105070.0,105060.0,9.089e-05]
[1749911754650,5.96501589,105070.0,105060.0,0.01794292]
[1749911754866,5.96501589,105070.0,105060.0,9.089e-05]
[1749911755094,5.96501589,105070.0,105060.0,0.01794296]
[1749911755313,6.07765765,105070.0,105060.0,0.01794296]
[1749911755529,6.06125765,105070.0,105060.0,0.01794296]
[1749911755743,5.96510843,105070.0,105060.0,9.089e-05]
[1749911755956,5.98510843,105070.0,105060.0,0.01794296]
[1749911756380,5.98510843,105070.0,105060.0,9.089e-05]
[1749911756595,5.98510843,105070.0,105060.0,0.01794296]
[1749911757033,6.03704928,105070.0,105060.0,0.01794296]
[1749911757464,6.01964928,105070.0,105060.0,0.01794296]
[1749911757690,6.1157985,105070.0,105060.0,0.01794296]
[1749911757903,6.1157985,105070.0,105060.0,9.089e-05]
[1749911758168,6.08726096,105070.0,105060.0,9.089e-05]
[1749911758593,6.08726096,105070.0,105060.0,0.01794296]
[1749911758804,6.08726096,105070.0,105060.0,9.089e-05]
[1749911759883,6.08726096,105070.0,105060.0,0.05105163]
[1749911760107,5.99111174,105070.0,105060.0,0.05105163]
[1749911760330,5.99111174,105070.0,105060.0,0.03319089]
[1749911760547,5.99111174,105070.0,105060.0,0.05105163]
[1749911760985,5.99095174,105070.0,105060.0,0.03319089]
[1749911761199,5.99095174,105070.0,105060.0,0.05105163]
[1749911761415,5.99095174,105070.0,105060.0,0.03319089]
[1749911761631,5.99095174,105070.0,105060.0,0.05105163]
[1749911762503,5.99095174,105070.0,105060.0,0.03319089]
[1749911762745,5.98499488,105070.0,105060.0,0.05105097]
[1749911762968,5.89556617,105070.0,105060.0,0.05105031]
[1749911763222,5.94694625,105070.0,105060.0,0.03319089]
[1749911763889,5.94694625,105070.0,105060.0,0.05105042]
[1749911764105,5.94694625,105070.0,105060.0,0.05105044]
[1749911764322,5.94694625,105070.0,105060.0,0.05105043]
[1749911764543,5.94694625,105070.0,105060.0,0.03319089]
[1749911764759,5.94694625,105070.0,105060.0,0.05105043]
[1749911765248,0.04283559,105070.0,105060.0,0.28006316]
[1749911765459,0.38283559,105070.0,105060.0,0.29792155]
[1749911765684,0.40186915,105070.0,105060.0,0.29792118]
[1749911765908,0.41138616,105070.0,105060.0,0.28006316]
[1749911766143,0.40186915,105070.0,105060.0,0.29792082]
[1749911766365,0.39235223,105070.0,105060.0,0.28006316]
[1749911766607,0.36,105070.0,105060.0,0.28006316]
[1749911766840,0.37903347,105070.0,105060.0,0.28006316]
[1749911767110,0.36951664,105070.0,105060.0,0.29792062]
[1749911767340,0.38855057,105070.0,105060.0,0.29792062]
[1749911767552,0.37903347,105070.0,105060.0,0.29792062]
[1749911767999,0.38855048,105070.0,105060.0,0.29792062]
[1749911768442,0.38855048,105070.0,105060.0,0.28006316]
[1749911768709,0.38855048,105070.0,105060.0,0.29792062]
[1749911768909,0.39806767,105070.0,105060.0,0.29792062]
[1749911769120,0.38855048,105070.0,105060.0,0.29792061]
[1749911770199,0.38855048,105070.0,105060.0,0.2979205]
[1749911770407,0.39806776,105070.0,105060.0,0.29792049]
[1749911770618,0.39806776,105070.0,105060.0,0.29792048]
[1749911771491,0.39806776,105070.0,105060.0,0.28006316]
[1749911772133,0.39806776,105070.0,105060.0,0.29785564]
[1749911772361,0.39806767,105070.0,105060.0,0.29785564]
[1749911772578,0.39806767,105070.0,105060.0,0.28006316]
[1749911772797,0.40758495,105070.0,105060.0,0.29785564]
[1749911773906,0.40758495,105070.0,105060.0,0.28006316]
[1749911774523,0.40758495,105070.0,105060.0,0.29785566]
[1749911775364,0.40758495,105070.0,105060.0,0.28006316]
[1749911775774,0.40758495,105070.0,105060.0,0.29785589]
[1749911776193,0.40758495,105070.0,105060.0,0.28006316]
[1749911776398,0.40758495,105070.0,105060.0,0.2699051]
[1749911776611,0.57890113,105070.0,105060.0,0.03319089]
[1749911776887,0.56938394,105070.0,105060.0,0.03319089]
[1749911777180,0.59218237,105070.0,105060.0,0.05222753]
[1749911777353,0.59218237,105070.0,105060.0,0.24259493]
[1749911779825,0.59218237,105070.0,105060.0,0.25211311]
[1749911780730,0.58266509,105070.0,105060.0,0.25211311]
[1749911781511,0.57314772,105070.0,105060.0,0.24259493]
[1749911781881,0.57314772,105070.0,105060.0,0.03319089]
[1749911787482,0.61266772,105070.0,105060.0,0.22355829]
[1749911787688,0.61266772,105070.0,105060.0,0.23307666]
[1749911787888,0.61266772,105070.0,105060.0,0.04270926]
[1749911788138,0.61266772,105070.0,105060.0,0.02620926]
[1749911788560,0.61266772,105070.0,105060.0,0.21657666]
[1749911788904,0.61266772,105070.0,105060.0,0.24219493]
[1749911789674,0.61266772,105070.0,105060.0,0.23267666]
[1749911790313,0.61266772,105070.0,105060.0,0.24219493]
[1749911791135,0.61266772,105070.0,105060.0,0.25171311]
[1749911791344,0.61266772,105070.0,105060.0,0.24219493]
[1749911793332,0.61266772,105070.0,105060.0,0.25171311]
[1749911793559,0.25266772,105070.0,105060.0,0.25171311]
[1749911797520,0.25266772,105070.0,105060.0,0.03279089]
[1749911797721,0.25266772,105070.0,105060.0,0.21657656]
[1749911797914,0.25266772,105070.0,105060.0,0.22609474]
[1749911801375,0.25266772,105070.0,105060.0,0.21657656]
[1749911803572,0.25266772,105070.0,105060.0,0.22609474]
[1749911804251,5.30266772,105070.0,105060.0,9.089e-05]
[1749911804506,5.95881694,105070.0,105060.0,9.089e-05]
[1749911804727,6.13855324,105070.0,105060.0,9.089e-05]
[1749911804946,6.15515324,105070.0,105060.0,9.089e-05]
[1749911805203,6.12660875,105070.0,105060.0,9.089e-05]
[1749911805664,6.15514731,105070.0,105060.0,9.089e-05]
[1749911806116,6.1411496,105070.0,105060.0,9.089e-05]
[1749911808272,6.1421496,105070.0,105060.0,9.089e-05]
[1749911808697,6.17066869,105070.0,105060.0,9.089e-05]
[1749911810797,6.07451947,105070.0,105060.0,9.089e-05]
[1749911815897,6.22859947,105070.0,105060.0,9.089e-05]
[1749911820686,6.22859947,105070.0,105060.0,0.00902149]
[1749911820884,6.22859947,105070.0,105060.0,9.089e-05]
[1749911821092,6.22859947,105070.0,105060.0,0.00902149]
[1749911821337,6.32474869,105070.0,105060.0,0.00902149]
[1749911821560,6.32474869,105070.0,105060.0,9.089e-05]
[1749911821769,6.32474869,105070.0,105060.0,0.00902149]
[1749911822203,6.32474869,105070.0,105060.0,9.089e-05]
[1749911822853,6.32474869,105070.0,105060.0,0.0090215]
[1749911823699,6.30814869,105070.0,105060.0,9.089e-05]
[1749911823904,6.30814869,105070.0,105060.0,0.0090215]
[1749911824328,6.30814869,105070.0,105060.0,9.089e-05]
[1749911824533,6.30814869,105070.0,105060.0,0.0090215]
[1749911825601,6.29124869,105070.0,105060.0,9.089e-05]
[1749911826028,6.29124869,105070.0,105060.0,0.0090215]
[1749911826698,6.30834869,105070.0,105060.0,0.0090215]
[1749911826910,6.29124869,105070.0,105060.0,9.089e-05]
[1749911827336,6.30834869,105070.0,105060.0,9.089e-05]
[1749911827550,6.30834869,105070.0,105060.0,0.00902156]
[1749911827757,6.32424869,105070.0,105060.0,0.00902156]
[1749911828015,6.32424869,105070.0,105060.0,0.00902159]
[1749911828199,6.32424869,105070.0,105060.0,9.089e-05]
[1749911828661,6.2957296,105070.0,105060.0,0.00901829]
[1749911829262,6.3242247,105070.0,105060.0,0.00901828]
[1749911829467,6.2957296,105070.0,105060.0,0.00901828]
[1749911829668,6.2957296,105070.0,105060.0,9.089e-05]
[1749911829893,6.2957296,105070.0,105060.0,0.00901829]
[1749911830093,6.2957296,105070.0,105060.0,9.089e-05]
[1749911830304,6.2957296,105070.0,105060.0,0.00901829]
[1749911830518,6.2957296,105070.0,105060.0,0.00901847]
[1749911830737,0.20942344,105050.0,105040.0,0.0332]
[1749911830951,5.43634187,105050.0,105040.0,0.0332]
[1749911832272,5.43634187,105050.0,105040.0,0.0342]
[1749911832481,5.55258363,105050.0,105040.0,0.0342]
[1749911832707,5.55258363,105050.0,105040.0,0.0362]
[1749911834269,5.58087062,105050.0,105040.0,0.0362]
[1749911836436,5.62035062,105050.0,105040.0,0.0362]
[1749911836846,5.71649984,105050.0,105040.0,0.0362]
[1749911837267,6.05649984,105050.0,105040.0,0.0362]
[1749911838310,6.08500058,105050.0,105040.0,0.0362]
[1749911838903,6.08500058,105050.0,105040.0,0.0189]
[1749911839133,6.28500058,105050.0,105040.0,0.003]
[1749911844878,6.28500058,105050.0,105040.0,0.0203]
[1749911846068,6.28500058,105050.0,105040.0,0.003]
[1749911846289,6.34065063,105050.0,105040.0,0.003]
[1749911846471,6.35519148,105050.0,105040.0,0.003]
[1749911847461,6.32669074,105050.0,105040.0,0.003]
[1749911847935,5.58992365,105040.0,105030.0,0.0342]
[1749911848145,5.58992365,105040.0,105030.0,0.04324756]
[1749911848146,5.95729964,105040.0,105030.0,0.04324756]
[1749911848346,5.95729964,105040.0,105030.0,0.00904766]
[1749911848571,5.95729964,105040.0,105030.0,0.00904768]
[1749911848763,5.95729964,105040.0,105030.0,0.04254766]
[1749911849182,5.95829964,105040.0,105030.0,0.03364319]
[1749911849386,5.95829964,105040.0,105030.0,0.04254766]
[1749911849757,5.95829964,105040.0,105030.0,0.03364319]
[1749911850148,5.97959841,105040.0,105030.0,0.04254766]
[1749911850883,5.97959841,105040.0,105030.0,0.03364319]
[1749911851091,5.97959841,105040.0,105030.0,0.02554766]
[1749911851312,5.95112377,105040.0,105030.0,0.02554747]
[1749911851716,5.95112377,105040.0,105030.0,0.04264747]
[1749911852090,5.95112377,105040.0,105030.0,0.04264738]
[1749911852501,5.95112377,105040.0,105030.0,0.0426474]
[1749911852910,5.95112377,105040.0,105030.0,0.03374319]
[1749911853118,5.95112377,105040.0,105030.0,0.0426474]
[1749911853365,5.64454039,105040.0,105030.0,0.24259026]
[1749911853569,5.84850048,105040.0,105030.0,0.04326427]
[1749911853776,5.83898085,105040.0,105030.0,0.04326427]
[1749911853981,5.83898085,105040.0,105030.0,0.04264709]
[1749911854189,5.83898085,105040.0,105030.0,0.03374319]
[1749911854401,5.83898085,105040.0,105030.0,0.04264698]
[1749911854580,5.83898085,105040.0,105030.0,0.03374319]
[1749911854974,5.93513007,105040.0,105030.0,0.03374319]
[1749911858071,5.96360471,105040.0,105030.0,0.03374319]
[1749911858312,5.96360471,105040.0,105030.0,0.04267605]
[1749911858539,5.96360471,105040.0,105030.0,0.03374319]
[1749911862804,5.86745549,105040.0,105030.0,0.03374319]
[1749911867474,5.96369725,105040.0,105030.0,0.00014319]
[1749911867684,5.98369725,105040.0,105030.0,0.00014319]
[1749911868877,5.98369725,105040.0,105030.0,0.03354319]
[1749911869727,6.00150077,105040.0,105030.0,0.03354319]
[1749911870146,6.00174105,105040.0,105030.0,0.03354319]
[1749911870546,6.00174101,105040.0,105030.0,0.03354319]
[1749911870781,6.001741,105040.0,105030.0,0.03354319]
[1749911870985,5.98393725,105040.0,105030.0,0.03354319]
[1749911874532,6.0219873,105040.0,105030.0,0.03354319]
[1749911874968,6.11813652,105040.0,105030.0,0.03354319]
[1749911876660,6.08008647,105040.0,105030.0,0.03354319]
[1749911877306,6.11813652,105040.0,105030.0,0.03354319]
[1749911878249,6.0219873,105040.0,105030.0,0.03354319]
[1749911879542,6.0218273,105040.0,105030.0,0.03354319]
[1749911887981,6.0217473,105040.0,105030.0,0.03354319]
[1749911891019,6.0217473,105040.0,105030.0,0.00014319]
[1749911893732,6.0217473,105040.0,105030.0,0.03384319]
[1749911895331,6.11789652,105040.0,105030.0,0.01674319]
[1749911896732,5.64369725,105040.0,105030.0,0.03384319]
[1749911897078,5.64369725,105040.0,105030.0,0.01674319]
[1749911897310,5.64369725,105040.0,105030.0,0.00014319]
[1749911897530,5.67679725,105040.0,105030.0,0.00014319]
[1749911897915,5.64369725,105040.0,105030.0,0.00014319]
[1749911898804,5.98369725,105040.0,105030.0,0.00014319]
[1749911900752,5.64369725,105040.0,105030.0,0.00014319]
[1749911900958,5.73984647,105040.0,105030.0,0.00014319]
[1749911902299,5.64369725,105040.0,105030.0,0.00014319]
[1749911903671,5.98369725,105040.0,105030.0,0.00014319]
[1749911904319,5.98369725,105040.0,105030.0,0.03404319]
[1749911906725,6.0217473,105040.0,105030.0,0.03404319]
[1749911911984,6.0217473,105040.0,105030.0,0.01754319]
[1749911912185,6.0217473,105040.0,105030.0,0.00014319]
[1749911912413,6.11789652,105040.0,105030.0,0.00014319]
[1749911915835,5.99327266,105040.0,105030.0,0.00014319]
[1749911916033,6.02179653,105040.0,105030.0,0.00014319]
[1749911918373,6.03939653,105040.0,105030.0,0.00014319]
[1749911918575,6.01087266,105040.0,105030.0,0.00014319]
[1749911919003,5.99327266,105040.0,105030.0,0.00014319]
[1749911919827,6.0649357,105040.0,105030.0,0.00907612]
[1749911920037,6.06028565,105040.0,105030.0,0.00907612]
[1749911920237,0.54948326,105020.0,105010.0,0.0345]
[1749911920454,5.80548035,105020.0,105010.0,0.04343404]
[1749911920655,5.80548035,105020.0,105010.0,0.04343411]
[1749911921275,5.80548035,105020.0,105010.0,0.0345]
[1749911922339,5.80548035,105020.0,105010.0,0.0355]
[1749911922604,5.77696169,105020.0,105010.0,0.0355]
[1749911923119,5.81684169,105020.0,105010.0,0.0355]
[1749911923859,5.91299091,105020.0,105010.0,0.0355]
[1749911924046,5.91319091,105020.0,105010.0,0.0355]
[1749911924837,5.91319091,105020.0,105010.0,0.0345]
[1749911925243,5.91419091,105020.0,105010.0,0.0345]
[1749911927259,5.81804169,105020.0,105010.0,0.0345]
[1749911929866,5.81804169,105020.0,105010.0,0.04340486]
[1749911930668,5.81804169,105020.0,105010.0,0.0345]
[1749911931073,5.81804169,105020.0,105010.0,0.04340486]
[1749911933465,5.81804169,105020.0,105010.0,0.0345]
[1749911934498,5.81804169,105020.0,105010.0,0.04340486]
[1749911934702,5.81804169,105020.0,105010.0,0.04340473]
[1749911935120,5.91419091,105020.0,105010.0,0.04340483]
[1749911935527,5.91419091,105020.0,105010.0,0.04340486]
[1749911937404,5.91419091,105020.0,105010.0,0.0345]
[1749911937608,5.91419091,105020.0,105010.0,0.04340486]
[1749911938062,5.91419091,105020.0,105010.0,0.0345]
[1749911938255,5.91419091,105020.0,105010.0,0.04343412]
[1749911938465,5.81804169,105020.0,105010.0,0.04343412]
[1749911939373,5.81804169,105020.0,105010.0,0.04343413]
[1749911939584,5.81804169,105020.0,105010.0,0.0345]
[1749911939795,5.81804169,105020.0,105010.0,0.04343413]
[1749911940031,5.81804169,105020.0,105010.0,0.04343412]
[1749911940660,5.81804169,105020.0,105010.0,0.04343413]
[1749911941095,5.81804169,105020.0,105010.0,0.04343412]
[1749911941338,5.81804169,105020.0,105010.0,0.04343413]
[1749911941510,5.81804169,105020.0,105010.0,0.04343412]
[1749911941941,5.59334818,105020.0,105010.0,0.04343412]
[1749911942144,5.78378809,105020.0,105010.0,0.04343412]
[1749911942274,5.80283144,105020.0,105010.0,0.0345]
[1749911942471,5.80283144,105020.0,105010.0,0.04343413]
[1749911942679,5.80283144,105020.0,105010.0,0.0345]
[1749911942878,5.80283144,105020.0,105010.0,0.04343413]
[1749911943282,5.80283144,105020.0,105010.0,0.04343412]
[1749911943913,5.80283144,105020.0,105010.0,0.04343379]
[1749911944536,5.80283144,105020.0,105010.0,0.0345]
[1749911944743,5.80283144,105020.0,105010.0,0.04343379]
[1749911945175,5.80283144,105020.0,105010.0,0.0345]
[1749911945380,5.80283144,105020.0,105010.0,0.04343379]
[1749911945780,5.80283144,105020.0,105010.0,0.0345]
[1749911945993,5.80283144,105020.0,105010.0,0.04343379]
[1749911946406,5.80283144,105020.0,105010.0,0.0345]
[1749911946846,5.80283144,105020.0,105010.0,0.04343379]
[1749911947056,6.24623992,105020.0,105010.0,0.00893379]
[1749911947267,5.59952316,105000.0,104990.0,0.054]
[1749911947483,5.77728159,105000.0,104990.0,0.06293503]
[1749911947727,5.77728159,105000.0,104990.0,0.054]
[1749911947934,5.77728159,105000.0,104990.0,0.06293515]
[1749911948143,5.81899855,105000.0,104990.0,0.054]
[1749911948551,5.81899855,105000.0,104990.0,0.06302621]
[1749911948759,5.81899855,105000.0,104990.0,0.05709064]
[1749911948963,5.81899855,105000.0,104990.0,0.06802658]
[1749911949181,5.76775824,105000.0,104990.0,0.06802659]
[1749911949381,5.76775824,105000.0,104990.0,0.05909064]
[1749911949589,5.76775824,105000.0,104990.0,0.06302659]
[1749911950016,5.76775824,105000.0,104990.0,0.05409064]
[1749911950437,5.76875824,105000.0,104990.0,0.05409064]
[1749911950651,5.76875824,105000.0,104990.0,0.0630266]
[1749911950863,6.04250873,105000.0,104990.0,0.02902664]
[1749911951091,6.04250873,105000.0,104990.0,0.02009064]
[1749911951695,6.04250873,105000.0,104990.0,0.02902727]
[1749911951897,6.08053362,105000.0,104990.0,0.02902727]
[1749911952110,5.9843844,105000.0,104990.0,0.02009064]
[1749911952347,5.9843844,105000.0,104990.0,0.04690051]
[1749911952560,5.94635951,105000.0,104990.0,0.03796389]
[1749911952746,5.94635951,105000.0,104990.0,0.02902726]
[1749911952953,5.94635951,105000.0,104990.0,0.04690051]
[1749911953602,6.16315951,105000.0,104990.0,0.02009064]
[1749911953829,6.2011844,105000.0,104990.0,0.03796389]
[1749911954044,6.2011844,105000.0,104990.0,0.02902744]
[1749911954251,6.2011844,105000.0,104990.0,0.02009064]
[1749911954469,6.16315951,105000.0,104990.0,0.04690091]
[1749911954666,6.16315951,105000.0,104990.0,0.04690087]
[1749911954879,6.16315951,105000.0,104990.0,0.02902734]
[1749911955361,6.06924873,105000.0,104990.0,0.04690072]
[1749911955608,0.05052308,105000.0,104990.0,0.29293055]
[1749911955854,0.06004634,105000.0,104990.0,0.27505802]
[1749911956070,0.22504978,105000.0,104990.0,0.29292694]
[1749911956298,0.22504978,105000.0,104990.0,0.46478661]
[1749911956299,0.001,105000.0,104990.0,0.46478661]
[1749911956519,0.06004625,105000.0,104990.0,0.51435225]
[1749911956729,0.06004625,105000.0,104990.0,0.53222162]
[1749911956937,0.40004625,105000.0,104990.0,0.53222161]
[1749911957144,0.06004625,105000.0,104990.0,0.53222169]
[1749911957375,0.40004625,105000.0,104990.0,0.51435225]
[1749911957599,0.40004616,105000.0,104990.0,0.53222168]
[1749911957822,0.40004616,105000.0,104990.0,0.53222166]
[1749911958255,0.40004616,105000.0,104990.0,0.53222165]
[1749911958468,0.40004616,105000.0,104990.0,0.53222164]
[1749911958916,0.341,105000.0,104990.0,0.51435225]
[1749911959133,0.381,105000.0,104990.0,0.45660367]
[1749911959342,0.39052299,105000.0,104990.0,0.45660367]
[1749911959556,0.40004616,105000.0,104990.0,0.45660367]
[1749911959760,0.36004616,105000.0,104990.0,0.43873431]
[1749911959987,0.381,105000.0,104990.0,0.45660349]
[1749911960242,0.381,105000.0,104990.0,0.45660327]
[1749911960456,0.041,105000.0,104990.0,0.43873431]
[1749911960656,0.041,105000.0,104990.0,0.45660292]
[1749911960861,0.041,105000.0,104990.0,0.45660288]
[1749911961279,0.041,105000.0,104990.0,0.45660287]
[1749911961488,0.001,105000.0,104990.0,0.45660287]
[1749911962321,0.001,105000.0,104990.0,0.45660227]
[1749911962530,0.001,105000.0,104990.0,0.43873431]
[1749911963175,0.40856687,105010.0,105000.0,0.21904651]
[1749911963401,0.40856687,105010.0,105000.0,0.25494651]
[1749911963648,0.38952208,105010.0,105000.0,0.25494651]
[1749911963895,0.39904434,105010.0,105000.0,0.25494651]
[1749911964415,0.04,105020.0,105010.0,0.25492565]
[1749911964657,0.39904281,105020.0,105010.0,0.25492565]
[1749911964877,0.40856462,105020.0,105010.0,0.25492565]
[1749911965090,0.39904281,105020.0,105010.0,0.25492565]
[1749911965314,0.40856444,105020.0,105010.0,0.25492565]
[1749911965540,0.36856444,105020.0,105010.0,0.31762719]
[1749911965760,0.40956453,105020.0,105010.0,0.31762719]
[1749911965997,0.40004272,105020.0,105010.0,0.31762719]
[1749911966231,0.40004263,105020.0,105010.0,0.31762719]
[1749911966725,0.40956417,105020.0,105010.0,0.31762719]
[1749911966948,0.40004263,105020.0,105010.0,0.31762719]
[1749911967170,0.4190858,105020.0,105010.0,0.31762719]
[1749911967371,0.41908571,105020.0,105010.0,0.31762719]
[1749911968036,0.40956408,105020.0,105010.0,0.31762719]
[1749911968241,0.41908562,105020.0,105010.0,0.25492565]
[1749911969054,0.40956408,105020.0,105010.0,0.25492565]
[1749911969489,0.41908571,105020.0,105010.0,0.25492565]
[1749911970798,0.40956408,105020.0,105010.0,0.25492565]
[1749911971003,0.41908562,105020.0,105010.0,0.25492565]
[1749911971474,0.40956408,105020.0,105010.0,0.25492565]
[1749911971956,0.41908571,105020.0,105010.0,0.25492565]
[1749911972388,0.40956408,105020.0,105010.0,0.25492565]
[1749911972824,0.40004263,105020.0,105010.0,0.25492565]
[1749911973520,0.40956408,105020.0,105010.0,0.25492565]
[1749911973959,0.40956408,105020.0,105010.0,0.33317519]
[1749911974178,0.41908571,105020.0,105010.0,0.33317519]
[1749911974407,0.35052127,105020.0,105010.0,0.33317519]